{"text_format":"3","workbook":"xlsx","n_sheets":3,"sheets":["Données du prospect","Ventes prévues ","Prévision pondérée mensuelle"],"not_rendered":{"charts":1,"defined_names":10},"read":"whole","date_system":"1900"}

{"sheet":"Données du prospect","index":0,"n_rows":9,"n_cols":10,"rows_kept":9,"merged":[[3,1,3,8]]}
[null,"Nom société"]
[null,"Suivi des prospects détaillé"]
[null,{"$f":"TODAY()","v":"2018-07-24"}]
[null,{"$f":"Nom_société","v":"Nom société"},{"$nulls":7},"CONFIDENTIEL"]
[null,"Nom du prospect","Contact du prospect","Source \ndu prospect","Région \ndu prospect","Type de \nprospect","Opportunité potentielle","Probabilité \nde vente","Clôture de \nla prévision","Prévision \npondérée"]
[null,"A. Datum Corporation",{"$nulls":3},"Stratégique",{"v":300000,"d":"300,000.00 €"},{"v":0.9,"d":"90%"},"Janvier",{"$f":"IFERROR(IF(DonnéesDuProspect[Probabilité \nde vente]<>\"\",DonnéesDuProspect[Probabilité \nde vente]*DonnéesDuProspect[Opportunité potentielle],\"\"),\"\")","v":{"v":270000,"d":"270,000.00 €"}}]
[null,"Adventure Works",{"$nulls":3},"Stratégique",{"v":200000,"d":"200,000.00 €"},{"v":0.1,"d":"10%"},"Février",{"$f":"IFERROR(IF(DonnéesDuProspect[Probabilité \nde vente]<>\"\",DonnéesDuProspect[Probabilité \nde vente]*DonnéesDuProspect[Opportunité potentielle],\"\"),\"\")","v":{"v":20000,"d":"20,000.00 €"}}]
[null,"Alpine Ski House",{"$nulls":3},"Tactique",{"v":100000,"d":"100,000.00 €"},{"v":0.2,"d":"20%"},"Mars",{"$f":"IFERROR(IF(DonnéesDuProspect[Probabilité \nde vente]<>\"\",DonnéesDuProspect[Probabilité \nde vente]*DonnéesDuProspect[Opportunité potentielle],\"\"),\"\")","v":{"v":20000,"d":"20,000.00 €"}}]
[null,"Total",{"$nulls":4},{"$f":"SUBTOTAL(109,DonnéesDuProspect[Opportunité potentielle])","v":{"v":600000,"d":"600,000.00 €"}},null,null,{"$f":"SUBTOTAL(109,DonnéesDuProspect[Prévision \npondérée])","v":{"v":310000,"d":"310,000.00 €"}}]

{"sheet":"Ventes prévues ","index":1,"n_rows":21,"n_cols":14,"rows_kept":21,"merged":[[3,1,3,11],[3,12,3,13]]}
[null,{"$f":"Nom_société","v":"Nom société"}]
[null,"Ventes prévues"]
[null,{"$f":"DateSuivi","v":"2018-07-24"}]
[null,{"$f":"Nom_société","v":"Nom société"},{"$nulls":10},"CONFIDENTIEL"]
[null,"Nom du prospect","Prévision \npour janvier","Prévision \npour février","Prévision \npour mars","Prévision \npour avril","Prévision \npour mai","Prévision \npour juin","Prévision pour juillet","Prévision \npour août","Prévision \npour septembre","Prévision \npour octobre","Prévision \npour novembre","Prévision \npour décembre"]
[null,{"$f":"IFERROR(IF(AND(DonnéesDuProspect[Nom du prospect] <> \"\", ROW(VentesPrévues[Nom du prospect])<>DernièreEntrée),DonnéesDuProspect[Nom du prospect], \"\"),\"\")","v":"A. Datum Corporation"},{"$f":"IFERROR(IF(DonnéesDuProspect[Clôture de \nla prévision] <>\"\",IF(DonnéesDuProspect[Clôture de \nla prévision]= \"Janvier\",DonnéesDuProspect[Prévision \npondérée],0),\"\"),\"\")","v":{"v":270000,"d":"270,000 €"}},{"$f":"IFERROR(IF(DonnéesDuProspect[Clôture de \nla prévision] <>\"\",IF(DonnéesDuProspect[Clôture de \nla prévision] = \"Février\",DonnéesDuProspect[Prévision \npondérée],0),\"\"),\"\")","v":{"v":0,"d":"0 €"}},{"$f":"IFERROR(IF(DonnéesDuProspect[Clôture de \nla prévision] <>\"\",IF(DonnéesDuProspect[Clôture de \nla prévision] = \"Mars\",DonnéesDuProspect[Prévision \npondérée],0),\"\"),\"\")","v":{"v":0,"d":"0 €"}},{"$f":"IFERROR(IF(DonnéesDuProspect[Clôture de \nla prévision] <>\"\",IF(DonnéesDuProspect[Clôture de \nla prévision] = \"Avril\",DonnéesDuProspect[Prévision \npondérée],0),\"\"),\"\")","v":{"v":0,"d":"0 €"}},{"$f":"IFERROR(IF(DonnéesDuProspect[Clôture de \nla prévision] <>\"\",IF(DonnéesDuProspect[Clôture de \nla prévision] = \"Mai\",DonnéesDuProspect[Prévision \npondérée],0),\"\"),\"\")","v":{"v":0,"d":"0 €"}},{"$f":"IFERROR(IF(DonnéesDuProspect[Clôture de \nla prévision] <>\"\",IF(DonnéesDuProspect[Clôture de \nla prévision] = \"Juin\",DonnéesDuProspect[Prévision \npondérée],0),\"\"),\"\")","v":{"v":0,"d":"0 €"}},{"$f":"IFERROR(IF(DonnéesDuProspect[Clôture de \nla prévision] <>\"\",IF(DonnéesDuProspect[Clôture de \nla prévision] = \"Juillet\",DonnéesDuProspect[Prévision \npondérée],0),\"\"),\"\")","v":{"v":0,"d":"0 €"}},{"$f":"IFERROR(IF(DonnéesDuProspect[Clôture de \nla prévision] <>\"\",IF(DonnéesDuProspect[Clôture de \nla prévision] = \"Août\",DonnéesDuProspect[Prévision \npondérée],0),\"\"),\"\")","v":{"v":0,"d":"0 €"}},{"$f":"IFERROR(IF(DonnéesDuProspect[Clôture de \nla prévision] <>\"\",IF(DonnéesDuProspect[Clôture de \nla prévision] = \"Septembre\",DonnéesDuProspect[Prévision \npondérée],0),\"\"),\"\")","v":{"v":0,"d":"0 €"}},{"$f":"IFERROR(IF(DonnéesDuProspect[Clôture de \nla prévision] <>\"\",IF(DonnéesDuProspect[Clôture de \nla prévision] = \"Octobre\",DonnéesDuProspect[Prévision \npondérée],0),\"\"),\"\")","v":{"v":0,"d":"0 €"}},{"$f":"IFERROR(IF(DonnéesDuProspect[Clôture de \nla prévision] <>\"\",IF(DonnéesDuProspect[Clôture de \nla prévision] = \"Novembre\",DonnéesDuProspect[Prévision \npondérée],0),\"\"),\"\")","v":{"v":0,"d":"0 €"}},{"$f":"IFERROR(IF(DonnéesDuProspect[Clôture de \nla prévision] <>\"\",IF(DonnéesDuProspect[Clôture de \nla prévision] = \"Décembre\",DonnéesDuProspect[Prévision \npondérée],0),\"\"),\"\")","v":{"v":0,"d":"0 €"}}]
[null,{"$f":"IFERROR(IF(AND(DonnéesDuProspect[Nom du prospect] <> \"\", ROW(VentesPrévues[Nom du prospect])<>DernièreEntrée),DonnéesDuProspect[Nom du prospect], \"\"),\"\")","v":"Adventure Works"},{"$f":"IFERROR(IF(DonnéesDuProspect[Clôture de \nla prévision] <>\"\",IF(DonnéesDuProspect[Clôture de \nla prévision]= \"Janvier\",DonnéesDuProspect[Prévision \npondérée],0),\"\"),\"\")","v":{"v":0,"d":"0 €"}},{"$f":"IFERROR(IF(DonnéesDuProspect[Clôture de \nla prévision] <>\"\",IF(DonnéesDuProspect[Clôture de \nla prévision] = \"Février\",DonnéesDuProspect[Prévision \npondérée],0),\"\"),\"\")","v":{"v":20000,"d":"20,000 €"}},{"$f":"IFERROR(IF(DonnéesDuProspect[Clôture de \nla prévision] <>\"\",IF(DonnéesDuProspect[Clôture de \nla prévision] = \"Mars\",DonnéesDuProspect[Prévision \npondérée],0),\"\"),\"\")","v":{"v":0,"d":"0 €"}},{"$f":"IFERROR(IF(DonnéesDuProspect[Clôture de \nla prévision] <>\"\",IF(DonnéesDuProspect[Clôture de \nla prévision] = \"Avril\",DonnéesDuProspect[Prévision \npondérée],0),\"\"),\"\")","v":{"v":0,"d":"0 €"}},{"$f":"IFERROR(IF(DonnéesDuProspect[Clôture de \nla prévision] <>\"\",IF(DonnéesDuProspect[Clôture de \nla prévision] = \"Mai\",DonnéesDuProspect[Prévision \npondérée],0),\"\"),\"\")","v":{"v":0,"d":"0 €"}},{"$f":"IFERROR(IF(DonnéesDuProspect[Clôture de \nla prévision] <>\"\",IF(DonnéesDuProspect[Clôture de \nla prévision] = \"Juin\",DonnéesDuProspect[Prévision \npondérée],0),\"\"),\"\")","v":{"v":0,"d":"0 €"}},{"$f":"IFERROR(IF(DonnéesDuProspect[Clôture de \nla prévision] <>\"\",IF(DonnéesDuProspect[Clôture de \nla prévision] = \"Juillet\",DonnéesDuProspect[Prévision \npondérée],0),\"\"),\"\")","v":{"v":0,"d":"0 €"}},{"$f":"IFERROR(IF(DonnéesDuProspect[Clôture de \nla prévision] <>\"\",IF(DonnéesDuProspect[Clôture de \nla prévision] = \"Août\",DonnéesDuProspect[Prévision \npondérée],0),\"\"),\"\")","v":{"v":0,"d":"0 €"}},{"$f":"IFERROR(IF(DonnéesDuProspect[Clôture de \nla prévision] <>\"\",IF(DonnéesDuProspect[Clôture de \nla prévision] = \"Septembre\",DonnéesDuProspect[Prévision \npondérée],0),\"\"),\"\")","v":{"v":0,"d":"0 €"}},{"$f":"IFERROR(IF(DonnéesDuProspect[Clôture de \nla prévision] <>\"\",IF(DonnéesDuProspect[Clôture de \nla prévision] = \"Octobre\",DonnéesDuProspect[Prévision \npondérée],0),\"\"),\"\")","v":{"v":0,"d":"0 €"}},{"$f":"IFERROR(IF(DonnéesDuProspect[Clôture de \nla prévision] <>\"\",IF(DonnéesDuProspect[Clôture de \nla prévision] = \"Novembre\",DonnéesDuProspect[Prévision \npondérée],0),\"\"),\"\")","v":{"v":0,"d":"0 €"}},{"$f":"IFERROR(IF(DonnéesDuProspect[Clôture de \nla prévision] <>\"\",IF(DonnéesDuProspect[Clôture de \nla prévision] = \"Décembre\",DonnéesDuProspect[Prévision \npondérée],0),\"\"),\"\")","v":{"v":0,"d":"0 €"}}]
[null,{"$f":"IFERROR(IF(AND(DonnéesDuProspect[Nom du prospect] <> \"\", ROW(VentesPrévues[Nom du prospect])<>DernièreEntrée),DonnéesDuProspect[Nom du prospect], \"\"),\"\")","v":"Alpine Ski House"},{"$f":"IFERROR(IF(DonnéesDuProspect[Clôture de \nla prévision] <>\"\",IF(DonnéesDuProspect[Clôture de \nla prévision]= \"Janvier\",DonnéesDuProspect[Prévision \npondérée],0),\"\"),\"\")","v":{"v":0,"d":"0 €"}},{"$f":"IFERROR(IF(DonnéesDuProspect[Clôture de \nla prévision] <>\"\",IF(DonnéesDuProspect[Clôture de \nla prévision] = \"Février\",DonnéesDuProspect[Prévision \npondérée],0),\"\"),\"\")","v":{"v":0,"d":"0 €"}},{"$f":"IFERROR(IF(DonnéesDuProspect[Clôture de \nla prévision] <>\"\",IF(DonnéesDuProspect[Clôture de \nla prévision] = \"Mars\",DonnéesDuProspect[Prévision \npondérée],0),\"\"),\"\")","v":{"v":20000,"d":"20,000 €"}},{"$f":"IFERROR(IF(DonnéesDuProspect[Clôture de \nla prévision] <>\"\",IF(DonnéesDuProspect[Clôture de \nla prévision] = \"Avril\",DonnéesDuProspect[Prévision \npondérée],0),\"\"),\"\")","v":{"v":0,"d":"0 €"}},{"$f":"IFERROR(IF(DonnéesDuProspect[Clôture de \nla prévision] <>\"\",IF(DonnéesDuProspect[Clôture de \nla prévision] = \"Mai\",DonnéesDuProspect[Prévision \npondérée],0),\"\"),\"\")","v":{"v":0,"d":"0 €"}},{"$f":"IFERROR(IF(DonnéesDuProspect[Clôture de \nla prévision] <>\"\",IF(DonnéesDuProspect[Clôture de \nla prévision] = \"Juin\",DonnéesDuProspect[Prévision \npondérée],0),\"\"),\"\")","v":{"v":0,"d":"0 €"}},{"$f":"IFERROR(IF(DonnéesDuProspect[Clôture de \nla prévision] <>\"\",IF(DonnéesDuProspect[Clôture de \nla prévision] = \"Juillet\",DonnéesDuProspect[Prévision \npondérée],0),\"\"),\"\")","v":{"v":0,"d":"0 €"}},{"$f":"IFERROR(IF(DonnéesDuProspect[Clôture de \nla prévision] <>\"\",IF(DonnéesDuProspect[Clôture de \nla prévision] = \"Août\",DonnéesDuProspect[Prévision \npondérée],0),\"\"),\"\")","v":{"v":0,"d":"0 €"}},{"$f":"IFERROR(IF(DonnéesDuProspect[Clôture de \nla prévision] <>\"\",IF(DonnéesDuProspect[Clôture de \nla prévision] = \"Septembre\",DonnéesDuProspect[Prévision \npondérée],0),\"\"),\"\")","v":{"v":0,"d":"0 €"}},{"$f":"IFERROR(IF(DonnéesDuProspect[Clôture de \nla prévision] <>\"\",IF(DonnéesDuProspect[Clôture de \nla prévision] = \"Octobre\",DonnéesDuProspect[Prévision \npondérée],0),\"\"),\"\")","v":{"v":0,"d":"0 €"}},{"$f":"IFERROR(IF(DonnéesDuProspect[Clôture de \nla prévision] <>\"\",IF(DonnéesDuProspect[Clôture de \nla prévision] = \"Novembre\",DonnéesDuProspect[Prévision \npondérée],0),\"\"),\"\")","v":{"v":0,"d":"0 €"}},{"$f":"IFERROR(IF(DonnéesDuProspect[Clôture de \nla prévision] <>\"\",IF(DonnéesDuProspect[Clôture de \nla prévision] = \"Décembre\",DonnéesDuProspect[Prévision \npondérée],0),\"\"),\"\")","v":{"v":0,"d":"0 €"}}]
[null,{"$f":"IFERROR(IF(AND(DonnéesDuProspect[Nom du prospect] <> \"\", ROW(VentesPrévues[Nom du prospect])<>DernièreEntrée),DonnéesDuProspect[Nom du prospect], \"\"),\"\")","v":""},{"$f":"IFERROR(IF(DonnéesDuProspect[Clôture de \nla prévision] <>\"\",IF(DonnéesDuProspect[Clôture de \nla prévision]= \"Janvier\",DonnéesDuProspect[Prévision \npondérée],0),\"\"),\"\")","v":""},{"$f":"IFERROR(IF(DonnéesDuProspect[Clôture de \nla prévision] <>\"\",IF(DonnéesDuProspect[Clôture de \nla prévision] = \"Février\",DonnéesDuProspect[Prévision \npondérée],0),\"\"),\"\")","v":""},{"$f":"IFERROR(IF(DonnéesDuProspect[Clôture de \nla prévision] <>\"\",IF(DonnéesDuProspect[Clôture de \nla prévision] = \"Mars\",DonnéesDuProspect[Prévision \npondérée],0),\"\"),\"\")","v":""},{"$f":"IFERROR(IF(DonnéesDuProspect[Clôture de \nla prévision] <>\"\",IF(DonnéesDuProspect[Clôture de \nla prévision] = \"Avril\",DonnéesDuProspect[Prévision \npondérée],0),\"\"),\"\")","v":""},{"$f":"IFERROR(IF(DonnéesDuProspect[Clôture de \nla prévision] <>\"\",IF(DonnéesDuProspect[Clôture de \nla prévision] = \"Mai\",DonnéesDuProspect[Prévision \npondérée],0),\"\"),\"\")","v":""},{"$f":"IFERROR(IF(DonnéesDuProspect[Clôture de \nla prévision] <>\"\",IF(DonnéesDuProspect[Clôture de \nla prévision] = \"Juin\",DonnéesDuProspect[Prévision \npondérée],0),\"\"),\"\")","v":""},{"$f":"IFERROR(IF(DonnéesDuProspect[Clôture de \nla prévision] <>\"\",IF(DonnéesDuProspect[Clôture de \nla prévision] = \"Juillet\",DonnéesDuProspect[Prévision \npondérée],0),\"\"),\"\")","v":""},{"$f":"IFERROR(IF(DonnéesDuProspect[Clôture de \nla prévision] <>\"\",IF(DonnéesDuProspect[Clôture de \nla prévision] = \"Août\",DonnéesDuProspect[Prévision \npondérée],0),\"\"),\"\")","v":""},{"$f":"IFERROR(IF(DonnéesDuProspect[Clôture de \nla prévision] <>\"\",IF(DonnéesDuProspect[Clôture de \nla prévision] = \"Septembre\",DonnéesDuProspect[Prévision \npondérée],0),\"\"),\"\")","v":""},{"$f":"IFERROR(IF(DonnéesDuProspect[Clôture de \nla prévision] <>\"\",IF(DonnéesDuProspect[Clôture de \nla prévision] = \"Octobre\",DonnéesDuProspect[Prévision \npondérée],0),\"\"),\"\")","v":""},{"$f":"IFERROR(IF(DonnéesDuProspect[Clôture de \nla prévision] <>\"\",IF(DonnéesDuProspect[Clôture de \nla prévision] = \"Novembre\",DonnéesDuProspect[Prévision \npondérée],0),\"\"),\"\")","v":""},{"$f":"IFERROR(IF(DonnéesDuProspect[Clôture de \nla prévision] <>\"\",IF(DonnéesDuProspect[Clôture de \nla prévision] = \"Décembre\",DonnéesDuProspect[Prévision \npondérée],0),\"\"),\"\")","v":""}]
[null,{"$f":"IFERROR(IF(AND(DonnéesDuProspect[Nom du prospect] <> \"\", ROW(VentesPrévues[Nom du prospect])<>DernièreEntrée),DonnéesDuProspect[Nom du prospect], \"\"),\"\")","v":""},{"$f":"IFERROR(IF(DonnéesDuProspect[Clôture de \nla prévision] <>\"\",IF(DonnéesDuProspect[Clôture de \nla prévision]= \"Janvier\",DonnéesDuProspect[Prévision \npondérée],0),\"\"),\"\")","v":""},{"$f":"IFERROR(IF(DonnéesDuProspect[Clôture de \nla prévision] <>\"\",IF(DonnéesDuProspect[Clôture de \nla prévision] = \"Février\",DonnéesDuProspect[Prévision \npondérée],0),\"\"),\"\")","v":""},{"$f":"IFERROR(IF(DonnéesDuProspect[Clôture de \nla prévision] <>\"\",IF(DonnéesDuProspect[Clôture de \nla prévision] = \"Mars\",DonnéesDuProspect[Prévision \npondérée],0),\"\"),\"\")","v":""},{"$f":"IFERROR(IF(DonnéesDuProspect[Clôture de \nla prévision] <>\"\",IF(DonnéesDuProspect[Clôture de \nla prévision] = \"Avril\",DonnéesDuProspect[Prévision \npondérée],0),\"\"),\"\")","v":""},{"$f":"IFERROR(IF(DonnéesDuProspect[Clôture de \nla prévision] <>\"\",IF(DonnéesDuProspect[Clôture de \nla prévision] = \"Mai\",DonnéesDuProspect[Prévision \npondérée],0),\"\"),\"\")","v":""},{"$f":"IFERROR(IF(DonnéesDuProspect[Clôture de \nla prévision] <>\"\",IF(DonnéesDuProspect[Clôture de \nla prévision] = \"Juin\",DonnéesDuProspect[Prévision \npondérée],0),\"\"),\"\")","v":""},{"$f":"IFERROR(IF(DonnéesDuProspect[Clôture de \nla prévision] <>\"\",IF(DonnéesDuProspect[Clôture de \nla prévision] = \"Juillet\",DonnéesDuProspect[Prévision \npondérée],0),\"\"),\"\")","v":""},{"$f":"IFERROR(IF(DonnéesDuProspect[Clôture de \nla prévision] <>\"\",IF(DonnéesDuProspect[Clôture de \nla prévision] = \"Août\",DonnéesDuProspect[Prévision \npondérée],0),\"\"),\"\")","v":""},{"$f":"IFERROR(IF(DonnéesDuProspect[Clôture de \nla prévision] <>\"\",IF(DonnéesDuProspect[Clôture de \nla prévision] = \"Septembre\",DonnéesDuProspect[Prévision \npondérée],0),\"\"),\"\")","v":""},{"$f":"IFERROR(IF(DonnéesDuProspect[Clôture de \nla prévision] <>\"\",IF(DonnéesDuProspect[Clôture de \nla prévision] = \"Octobre\",DonnéesDuProspect[Prévision \npondérée],0),\"\"),\"\")","v":""},{"$f":"IFERROR(IF(DonnéesDuProspect[Clôture de \nla prévision] <>\"\",IF(DonnéesDuProspect[Clôture de \nla prévision] = \"Novembre\",DonnéesDuProspect[Prévision \npondérée],0),\"\"),\"\")","v":""},{"$f":"IFERROR(IF(DonnéesDuProspect[Clôture de \nla prévision] <>\"\",IF(DonnéesDuProspect[Clôture de \nla prévision] = \"Décembre\",DonnéesDuProspect[Prévision \npondérée],0),\"\"),\"\")","v":""}]
[null,{"$f":"IFERROR(IF(AND(DonnéesDuProspect[Nom du prospect] <> \"\", ROW(VentesPrévues[Nom du prospect])<>DernièreEntrée),DonnéesDuProspect[Nom du prospect], \"\"),\"\")","v":""},{"$f":"IFERROR(IF(DonnéesDuProspect[Clôture de \nla prévision] <>\"\",IF(DonnéesDuProspect[Clôture de \nla prévision]= \"Janvier\",DonnéesDuProspect[Prévision \npondérée],0),\"\"),\"\")","v":""},{"$f":"IFERROR(IF(DonnéesDuProspect[Clôture de \nla prévision] <>\"\",IF(DonnéesDuProspect[Clôture de \nla prévision] = \"Février\",DonnéesDuProspect[Prévision \npondérée],0),\"\"),\"\")","v":""},{"$f":"IFERROR(IF(DonnéesDuProspect[Clôture de \nla prévision] <>\"\",IF(DonnéesDuProspect[Clôture de \nla prévision] = \"Mars\",DonnéesDuProspect[Prévision \npondérée],0),\"\"),\"\")","v":""},{"$f":"IFERROR(IF(DonnéesDuProspect[Clôture de \nla prévision] <>\"\",IF(DonnéesDuProspect[Clôture de \nla prévision] = \"Avril\",DonnéesDuProspect[Prévision \npondérée],0),\"\"),\"\")","v":""},{"$f":"IFERROR(IF(DonnéesDuProspect[Clôture de \nla prévision] <>\"\",IF(DonnéesDuProspect[Clôture de \nla prévision] = \"Mai\",DonnéesDuProspect[Prévision \npondérée],0),\"\"),\"\")","v":""},{"$f":"IFERROR(IF(DonnéesDuProspect[Clôture de \nla prévision] <>\"\",IF(DonnéesDuProspect[Clôture de \nla prévision] = \"Juin\",DonnéesDuProspect[Prévision \npondérée],0),\"\"),\"\")","v":""},{"$f":"IFERROR(IF(DonnéesDuProspect[Clôture de \nla prévision] <>\"\",IF(DonnéesDuProspect[Clôture de \nla prévision] = \"Juillet\",DonnéesDuProspect[Prévision \npondérée],0),\"\"),\"\")","v":""},{"$f":"IFERROR(IF(DonnéesDuProspect[Clôture de \nla prévision] <>\"\",IF(DonnéesDuProspect[Clôture de \nla prévision] = \"Août\",DonnéesDuProspect[Prévision \npondérée],0),\"\"),\"\")","v":""},{"$f":"IFERROR(IF(DonnéesDuProspect[Clôture de \nla prévision] <>\"\",IF(DonnéesDuProspect[Clôture de \nla prévision] = \"Septembre\",DonnéesDuProspect[Prévision \npondérée],0),\"\"),\"\")","v":""},{"$f":"IFERROR(IF(DonnéesDuProspect[Clôture de \nla prévision] <>\"\",IF(DonnéesDuProspect[Clôture de \nla prévision] = \"Octobre\",DonnéesDuProspect[Prévision \npondérée],0),\"\"),\"\")","v":""},{"$f":"IFERROR(IF(DonnéesDuProspect[Clôture de \nla prévision] <>\"\",IF(DonnéesDuProspect[Clôture de \nla prévision] = \"Novembre\",DonnéesDuProspect[Prévision \npondérée],0),\"\"),\"\")","v":""},{"$f":"IFERROR(IF(DonnéesDuProspect[Clôture de \nla prévision] <>\"\",IF(DonnéesDuProspect[Clôture de \nla prévision] = \"Décembre\",DonnéesDuProspect[Prévision \npondérée],0),\"\"),\"\")","v":""}]
[null,{"$f":"IFERROR(IF(AND(DonnéesDuProspect[Nom du prospect] <> \"\", ROW(VentesPrévues[Nom du prospect])<>DernièreEntrée),DonnéesDuProspect[Nom du prospect], \"\"),\"\")","v":""},{"$f":"IFERROR(IF(DonnéesDuProspect[Clôture de \nla prévision] <>\"\",IF(DonnéesDuProspect[Clôture de \nla prévision]= \"Janvier\",DonnéesDuProspect[Prévision \npondérée],0),\"\"),\"\")","v":""},{"$f":"IFERROR(IF(DonnéesDuProspect[Clôture de \nla prévision] <>\"\",IF(DonnéesDuProspect[Clôture de \nla prévision] = \"Février\",DonnéesDuProspect[Prévision \npondérée],0),\"\"),\"\")","v":""},{"$f":"IFERROR(IF(DonnéesDuProspect[Clôture de \nla prévision] <>\"\",IF(DonnéesDuProspect[Clôture de \nla prévision] = \"Mars\",DonnéesDuProspect[Prévision \npondérée],0),\"\"),\"\")","v":""},{"$f":"IFERROR(IF(DonnéesDuProspect[Clôture de \nla prévision] <>\"\",IF(DonnéesDuProspect[Clôture de \nla prévision] = \"Avril\",DonnéesDuProspect[Prévision \npondérée],0),\"\"),\"\")","v":""},{"$f":"IFERROR(IF(DonnéesDuProspect[Clôture de \nla prévision] <>\"\",IF(DonnéesDuProspect[Clôture de \nla prévision] = \"Mai\",DonnéesDuProspect[Prévision \npondérée],0),\"\"),\"\")","v":""},{"$f":"IFERROR(IF(DonnéesDuProspect[Clôture de \nla prévision] <>\"\",IF(DonnéesDuProspect[Clôture de \nla prévision] = \"Juin\",DonnéesDuProspect[Prévision \npondérée],0),\"\"),\"\")","v":""},{"$f":"IFERROR(IF(DonnéesDuProspect[Clôture de \nla prévision] <>\"\",IF(DonnéesDuProspect[Clôture de \nla prévision] = \"Juillet\",DonnéesDuProspect[Prévision \npondérée],0),\"\"),\"\")","v":""},{"$f":"IFERROR(IF(DonnéesDuProspect[Clôture de \nla prévision] <>\"\",IF(DonnéesDuProspect[Clôture de \nla prévision] = \"Août\",DonnéesDuProspect[Prévision \npondérée],0),\"\"),\"\")","v":""},{"$f":"IFERROR(IF(DonnéesDuProspect[Clôture de \nla prévision] <>\"\",IF(DonnéesDuProspect[Clôture de \nla prévision] = \"Septembre\",DonnéesDuProspect[Prévision \npondérée],0),\"\"),\"\")","v":""},{"$f":"IFERROR(IF(DonnéesDuProspect[Clôture de \nla prévision] <>\"\",IF(DonnéesDuProspect[Clôture de \nla prévision] = \"Octobre\",DonnéesDuProspect[Prévision \npondérée],0),\"\"),\"\")","v":""},{"$f":"IFERROR(IF(DonnéesDuProspect[Clôture de \nla prévision] <>\"\",IF(DonnéesDuProspect[Clôture de \nla prévision] = \"Novembre\",DonnéesDuProspect[Prévision \npondérée],0),\"\"),\"\")","v":""},{"$f":"IFERROR(IF(DonnéesDuProspect[Clôture de \nla prévision] <>\"\",IF(DonnéesDuProspect[Clôture de \nla prévision] = \"Décembre\",DonnéesDuProspect[Prévision \npondérée],0),\"\"),\"\")","v":""}]
[null,{"$f":"IFERROR(IF(AND(DonnéesDuProspect[Nom du prospect] <> \"\", ROW(VentesPrévues[Nom du prospect])<>DernièreEntrée),DonnéesDuProspect[Nom du prospect], \"\"),\"\")","v":""},{"$f":"IFERROR(IF(DonnéesDuProspect[Clôture de \nla prévision] <>\"\",IF(DonnéesDuProspect[Clôture de \nla prévision]= \"Janvier\",DonnéesDuProspect[Prévision \npondérée],0),\"\"),\"\")","v":""},{"$f":"IFERROR(IF(DonnéesDuProspect[Clôture de \nla prévision] <>\"\",IF(DonnéesDuProspect[Clôture de \nla prévision] = \"Février\",DonnéesDuProspect[Prévision \npondérée],0),\"\"),\"\")","v":""},{"$f":"IFERROR(IF(DonnéesDuProspect[Clôture de \nla prévision] <>\"\",IF(DonnéesDuProspect[Clôture de \nla prévision] = \"Mars\",DonnéesDuProspect[Prévision \npondérée],0),\"\"),\"\")","v":""},{"$f":"IFERROR(IF(DonnéesDuProspect[Clôture de \nla prévision] <>\"\",IF(DonnéesDuProspect[Clôture de \nla prévision] = \"Avril\",DonnéesDuProspect[Prévision \npondérée],0),\"\"),\"\")","v":""},{"$f":"IFERROR(IF(DonnéesDuProspect[Clôture de \nla prévision] <>\"\",IF(DonnéesDuProspect[Clôture de \nla prévision] = \"Mai\",DonnéesDuProspect[Prévision \npondérée],0),\"\"),\"\")","v":""},{"$f":"IFERROR(IF(DonnéesDuProspect[Clôture de \nla prévision] <>\"\",IF(DonnéesDuProspect[Clôture de \nla prévision] = \"Juin\",DonnéesDuProspect[Prévision \npondérée],0),\"\"),\"\")","v":""},{"$f":"IFERROR(IF(DonnéesDuProspect[Clôture de \nla prévision] <>\"\",IF(DonnéesDuProspect[Clôture de \nla prévision] = \"Juillet\",DonnéesDuProspect[Prévision \npondérée],0),\"\"),\"\")","v":""},{"$f":"IFERROR(IF(DonnéesDuProspect[Clôture de \nla prévision] <>\"\",IF(DonnéesDuProspect[Clôture de \nla prévision] = \"Août\",DonnéesDuProspect[Prévision \npondérée],0),\"\"),\"\")","v":""},{"$f":"IFERROR(IF(DonnéesDuProspect[Clôture de \nla prévision] <>\"\",IF(DonnéesDuProspect[Clôture de \nla prévision] = \"Septembre\",DonnéesDuProspect[Prévision \npondérée],0),\"\"),\"\")","v":""},{"$f":"IFERROR(IF(DonnéesDuProspect[Clôture de \nla prévision] <>\"\",IF(DonnéesDuProspect[Clôture de \nla prévision] = \"Octobre\",DonnéesDuProspect[Prévision \npondérée],0),\"\"),\"\")","v":""},{"$f":"IFERROR(IF(DonnéesDuProspect[Clôture de \nla prévision] <>\"\",IF(DonnéesDuProspect[Clôture de \nla prévision] = \"Novembre\",DonnéesDuProspect[Prévision \npondérée],0),\"\"),\"\")","v":""},{"$f":"IFERROR(IF(DonnéesDuProspect[Clôture de \nla prévision] <>\"\",IF(DonnéesDuProspect[Clôture de \nla prévision] = \"Décembre\",DonnéesDuProspect[Prévision \npondérée],0),\"\"),\"\")","v":""}]
[null,{"$f":"IFERROR(IF(AND(DonnéesDuProspect[Nom du prospect] <> \"\", ROW(VentesPrévues[Nom du prospect])<>DernièreEntrée),DonnéesDuProspect[Nom du prospect], \"\"),\"\")","v":""},{"$f":"IFERROR(IF(DonnéesDuProspect[Clôture de \nla prévision] <>\"\",IF(DonnéesDuProspect[Clôture de \nla prévision]= \"Janvier\",DonnéesDuProspect[Prévision \npondérée],0),\"\"),\"\")","v":""},{"$f":"IFERROR(IF(DonnéesDuProspect[Clôture de \nla prévision] <>\"\",IF(DonnéesDuProspect[Clôture de \nla prévision] = \"Février\",DonnéesDuProspect[Prévision \npondérée],0),\"\"),\"\")","v":""},{"$f":"IFERROR(IF(DonnéesDuProspect[Clôture de \nla prévision] <>\"\",IF(DonnéesDuProspect[Clôture de \nla prévision] = \"Mars\",DonnéesDuProspect[Prévision \npondérée],0),\"\"),\"\")","v":""},{"$f":"IFERROR(IF(DonnéesDuProspect[Clôture de \nla prévision] <>\"\",IF(DonnéesDuProspect[Clôture de \nla prévision] = \"Avril\",DonnéesDuProspect[Prévision \npondérée],0),\"\"),\"\")","v":""},{"$f":"IFERROR(IF(DonnéesDuProspect[Clôture de \nla prévision] <>\"\",IF(DonnéesDuProspect[Clôture de \nla prévision] = \"Mai\",DonnéesDuProspect[Prévision \npondérée],0),\"\"),\"\")","v":""},{"$f":"IFERROR(IF(DonnéesDuProspect[Clôture de \nla prévision] <>\"\",IF(DonnéesDuProspect[Clôture de \nla prévision] = \"Juin\",DonnéesDuProspect[Prévision \npondérée],0),\"\"),\"\")","v":""},{"$f":"IFERROR(IF(DonnéesDuProspect[Clôture de \nla prévision] <>\"\",IF(DonnéesDuProspect[Clôture de \nla prévision] = \"Juillet\",DonnéesDuProspect[Prévision \npondérée],0),\"\"),\"\")","v":""},{"$f":"IFERROR(IF(DonnéesDuProspect[Clôture de \nla prévision] <>\"\",IF(DonnéesDuProspect[Clôture de \nla prévision] = \"Août\",DonnéesDuProspect[Prévision \npondérée],0),\"\"),\"\")","v":""},{"$f":"IFERROR(IF(DonnéesDuProspect[Clôture de \nla prévision] <>\"\",IF(DonnéesDuProspect[Clôture de \nla prévision] = \"Septembre\",DonnéesDuProspect[Prévision \npondérée],0),\"\"),\"\")","v":""},{"$f":"IFERROR(IF(DonnéesDuProspect[Clôture de \nla prévision] <>\"\",IF(DonnéesDuProspect[Clôture de \nla prévision] = \"Octobre\",DonnéesDuProspect[Prévision \npondérée],0),\"\"),\"\")","v":""},{"$f":"IFERROR(IF(DonnéesDuProspect[Clôture de \nla prévision] <>\"\",IF(DonnéesDuProspect[Clôture de \nla prévision] = \"Novembre\",DonnéesDuProspect[Prévision \npondérée],0),\"\"),\"\")","v":""},{"$f":"IFERROR(IF(DonnéesDuProspect[Clôture de \nla prévision] <>\"\",IF(DonnéesDuProspect[Clôture de \nla prévision] = \"Décembre\",DonnéesDuProspect[Prévision \npondérée],0),\"\"),\"\")","v":""}]
[null,{"$f":"IFERROR(IF(AND(DonnéesDuProspect[Nom du prospect] <> \"\", ROW(VentesPrévues[Nom du prospect])<>DernièreEntrée),DonnéesDuProspect[Nom du prospect], \"\"),\"\")","v":""},{"$f":"IFERROR(IF(DonnéesDuProspect[Clôture de \nla prévision] <>\"\",IF(DonnéesDuProspect[Clôture de \nla prévision]= \"Janvier\",DonnéesDuProspect[Prévision \npondérée],0),\"\"),\"\")","v":""},{"$f":"IFERROR(IF(DonnéesDuProspect[Clôture de \nla prévision] <>\"\",IF(DonnéesDuProspect[Clôture de \nla prévision] = \"Février\",DonnéesDuProspect[Prévision \npondérée],0),\"\"),\"\")","v":""},{"$f":"IFERROR(IF(DonnéesDuProspect[Clôture de \nla prévision] <>\"\",IF(DonnéesDuProspect[Clôture de \nla prévision] = \"Mars\",DonnéesDuProspect[Prévision \npondérée],0),\"\"),\"\")","v":""},{"$f":"IFERROR(IF(DonnéesDuProspect[Clôture de \nla prévision] <>\"\",IF(DonnéesDuProspect[Clôture de \nla prévision] = \"Avril\",DonnéesDuProspect[Prévision \npondérée],0),\"\"),\"\")","v":""},{"$f":"IFERROR(IF(DonnéesDuProspect[Clôture de \nla prévision] <>\"\",IF(DonnéesDuProspect[Clôture de \nla prévision] = \"Mai\",DonnéesDuProspect[Prévision \npondérée],0),\"\"),\"\")","v":""},{"$f":"IFERROR(IF(DonnéesDuProspect[Clôture de \nla prévision] <>\"\",IF(DonnéesDuProspect[Clôture de \nla prévision] = \"Juin\",DonnéesDuProspect[Prévision \npondérée],0),\"\"),\"\")","v":""},{"$f":"IFERROR(IF(DonnéesDuProspect[Clôture de \nla prévision] <>\"\",IF(DonnéesDuProspect[Clôture de \nla prévision] = \"Juillet\",DonnéesDuProspect[Prévision \npondérée],0),\"\"),\"\")","v":""},{"$f":"IFERROR(IF(DonnéesDuProspect[Clôture de \nla prévision] <>\"\",IF(DonnéesDuProspect[Clôture de \nla prévision] = \"Août\",DonnéesDuProspect[Prévision \npondérée],0),\"\"),\"\")","v":""},{"$f":"IFERROR(IF(DonnéesDuProspect[Clôture de \nla prévision] <>\"\",IF(DonnéesDuProspect[Clôture de \nla prévision] = \"Septembre\",DonnéesDuProspect[Prévision \npondérée],0),\"\"),\"\")","v":""},{"$f":"IFERROR(IF(DonnéesDuProspect[Clôture de \nla prévision] <>\"\",IF(DonnéesDuProspect[Clôture de \nla prévision] = \"Octobre\",DonnéesDuProspect[Prévision \npondérée],0),\"\"),\"\")","v":""},{"$f":"IFERROR(IF(DonnéesDuProspect[Clôture de \nla prévision] <>\"\",IF(DonnéesDuProspect[Clôture de \nla prévision] = \"Novembre\",DonnéesDuProspect[Prévision \npondérée],0),\"\"),\"\")","v":""},{"$f":"IFERROR(IF(DonnéesDuProspect[Clôture de \nla prévision] <>\"\",IF(DonnéesDuProspect[Clôture de \nla prévision] = \"Décembre\",DonnéesDuProspect[Prévision \npondérée],0),\"\"),\"\")","v":""}]
[null,{"$f":"IFERROR(IF(AND(DonnéesDuProspect[Nom du prospect] <> \"\", ROW(VentesPrévues[Nom du prospect])<>DernièreEntrée),DonnéesDuProspect[Nom du prospect], \"\"),\"\")","v":""},{"$f":"IFERROR(IF(DonnéesDuProspect[Clôture de \nla prévision] <>\"\",IF(DonnéesDuProspect[Clôture de \nla prévision]= \"Janvier\",DonnéesDuProspect[Prévision \npondérée],0),\"\"),\"\")","v":""},{"$f":"IFERROR(IF(DonnéesDuProspect[Clôture de \nla prévision] <>\"\",IF(DonnéesDuProspect[Clôture de \nla prévision] = \"Février\",DonnéesDuProspect[Prévision \npondérée],0),\"\"),\"\")","v":""},{"$f":"IFERROR(IF(DonnéesDuProspect[Clôture de \nla prévision] <>\"\",IF(DonnéesDuProspect[Clôture de \nla prévision] = \"Mars\",DonnéesDuProspect[Prévision \npondérée],0),\"\"),\"\")","v":""},{"$f":"IFERROR(IF(DonnéesDuProspect[Clôture de \nla prévision] <>\"\",IF(DonnéesDuProspect[Clôture de \nla prévision] = \"Avril\",DonnéesDuProspect[Prévision \npondérée],0),\"\"),\"\")","v":""},{"$f":"IFERROR(IF(DonnéesDuProspect[Clôture de \nla prévision] <>\"\",IF(DonnéesDuProspect[Clôture de \nla prévision] = \"Mai\",DonnéesDuProspect[Prévision \npondérée],0),\"\"),\"\")","v":""},{"$f":"IFERROR(IF(DonnéesDuProspect[Clôture de \nla prévision] <>\"\",IF(DonnéesDuProspect[Clôture de \nla prévision] = \"Juin\",DonnéesDuProspect[Prévision \npondérée],0),\"\"),\"\")","v":""},{"$f":"IFERROR(IF(DonnéesDuProspect[Clôture de \nla prévision] <>\"\",IF(DonnéesDuProspect[Clôture de \nla prévision] = \"Juillet\",DonnéesDuProspect[Prévision \npondérée],0),\"\"),\"\")","v":""},{"$f":"IFERROR(IF(DonnéesDuProspect[Clôture de \nla prévision] <>\"\",IF(DonnéesDuProspect[Clôture de \nla prévision] = \"Août\",DonnéesDuProspect[Prévision \npondérée],0),\"\"),\"\")","v":""},{"$f":"IFERROR(IF(DonnéesDuProspect[Clôture de \nla prévision] <>\"\",IF(DonnéesDuProspect[Clôture de \nla prévision] = \"Septembre\",DonnéesDuProspect[Prévision \npondérée],0),\"\"),\"\")","v":""},{"$f":"IFERROR(IF(DonnéesDuProspect[Clôture de \nla prévision] <>\"\",IF(DonnéesDuProspect[Clôture de \nla prévision] = \"Octobre\",DonnéesDuProspect[Prévision \npondérée],0),\"\"),\"\")","v":""},{"$f":"IFERROR(IF(DonnéesDuProspect[Clôture de \nla prévision] <>\"\",IF(DonnéesDuProspect[Clôture de \nla prévision] = \"Novembre\",DonnéesDuProspect[Prévision \npondérée],0),\"\"),\"\")","v":""},{"$f":"IFERROR(IF(DonnéesDuProspect[Clôture de \nla prévision] <>\"\",IF(DonnéesDuProspect[Clôture de \nla prévision] = \"Décembre\",DonnéesDuProspect[Prévision \npondérée],0),\"\"),\"\")","v":""}]
[null,{"$f":"IFERROR(IF(AND(DonnéesDuProspect[Nom du prospect] <> \"\", ROW(VentesPrévues[Nom du prospect])<>DernièreEntrée),DonnéesDuProspect[Nom du prospect], \"\"),\"\")","v":""},{"$f":"IFERROR(IF(DonnéesDuProspect[Clôture de \nla prévision] <>\"\",IF(DonnéesDuProspect[Clôture de \nla prévision]= \"Janvier\",DonnéesDuProspect[Prévision \npondérée],0),\"\"),\"\")","v":""},{"$f":"IFERROR(IF(DonnéesDuProspect[Clôture de \nla prévision] <>\"\",IF(DonnéesDuProspect[Clôture de \nla prévision] = \"Février\",DonnéesDuProspect[Prévision \npondérée],0),\"\"),\"\")","v":""},{"$f":"IFERROR(IF(DonnéesDuProspect[Clôture de \nla prévision] <>\"\",IF(DonnéesDuProspect[Clôture de \nla prévision] = \"Mars\",DonnéesDuProspect[Prévision \npondérée],0),\"\"),\"\")","v":""},{"$f":"IFERROR(IF(DonnéesDuProspect[Clôture de \nla prévision] <>\"\",IF(DonnéesDuProspect[Clôture de \nla prévision] = \"Avril\",DonnéesDuProspect[Prévision \npondérée],0),\"\"),\"\")","v":""},{"$f":"IFERROR(IF(DonnéesDuProspect[Clôture de \nla prévision] <>\"\",IF(DonnéesDuProspect[Clôture de \nla prévision] = \"Mai\",DonnéesDuProspect[Prévision \npondérée],0),\"\"),\"\")","v":""},{"$f":"IFERROR(IF(DonnéesDuProspect[Clôture de \nla prévision] <>\"\",IF(DonnéesDuProspect[Clôture de \nla prévision] = \"Juin\",DonnéesDuProspect[Prévision \npondérée],0),\"\"),\"\")","v":""},{"$f":"IFERROR(IF(DonnéesDuProspect[Clôture de \nla prévision] <>\"\",IF(DonnéesDuProspect[Clôture de \nla prévision] = \"Juillet\",DonnéesDuProspect[Prévision \npondérée],0),\"\"),\"\")","v":""},{"$f":"IFERROR(IF(DonnéesDuProspect[Clôture de \nla prévision] <>\"\",IF(DonnéesDuProspect[Clôture de \nla prévision] = \"Août\",DonnéesDuProspect[Prévision \npondérée],0),\"\"),\"\")","v":""},{"$f":"IFERROR(IF(DonnéesDuProspect[Clôture de \nla prévision] <>\"\",IF(DonnéesDuProspect[Clôture de \nla prévision] = \"Septembre\",DonnéesDuProspect[Prévision \npondérée],0),\"\"),\"\")","v":""},{"$f":"IFERROR(IF(DonnéesDuProspect[Clôture de \nla prévision] <>\"\",IF(DonnéesDuProspect[Clôture de \nla prévision] = \"Octobre\",DonnéesDuProspect[Prévision \npondérée],0),\"\"),\"\")","v":""},{"$f":"IFERROR(IF(DonnéesDuProspect[Clôture de \nla prévision] <>\"\",IF(DonnéesDuProspect[Clôture de \nla prévision] = \"Novembre\",DonnéesDuProspect[Prévision \npondérée],0),\"\"),\"\")","v":""},{"$f":"IFERROR(IF(DonnéesDuProspect[Clôture de \nla prévision] <>\"\",IF(DonnéesDuProspect[Clôture de \nla prévision] = \"Décembre\",DonnéesDuProspect[Prévision \npondérée],0),\"\"),\"\")","v":""}]
[null,{"$f":"IFERROR(IF(AND(DonnéesDuProspect[Nom du prospect] <> \"\", ROW(VentesPrévues[Nom du prospect])<>DernièreEntrée),DonnéesDuProspect[Nom du prospect], \"\"),\"\")","v":""},{"$f":"IFERROR(IF(DonnéesDuProspect[Clôture de \nla prévision] <>\"\",IF(DonnéesDuProspect[Clôture de \nla prévision]= \"Janvier\",DonnéesDuProspect[Prévision \npondérée],0),\"\"),\"\")","v":""},{"$f":"IFERROR(IF(DonnéesDuProspect[Clôture de \nla prévision] <>\"\",IF(DonnéesDuProspect[Clôture de \nla prévision] = \"Février\",DonnéesDuProspect[Prévision \npondérée],0),\"\"),\"\")","v":""},{"$f":"IFERROR(IF(DonnéesDuProspect[Clôture de \nla prévision] <>\"\",IF(DonnéesDuProspect[Clôture de \nla prévision] = \"Mars\",DonnéesDuProspect[Prévision \npondérée],0),\"\"),\"\")","v":""},{"$f":"IFERROR(IF(DonnéesDuProspect[Clôture de \nla prévision] <>\"\",IF(DonnéesDuProspect[Clôture de \nla prévision] = \"Avril\",DonnéesDuProspect[Prévision \npondérée],0),\"\"),\"\")","v":""},{"$f":"IFERROR(IF(DonnéesDuProspect[Clôture de \nla prévision] <>\"\",IF(DonnéesDuProspect[Clôture de \nla prévision] = \"Mai\",DonnéesDuProspect[Prévision \npondérée],0),\"\"),\"\")","v":""},{"$f":"IFERROR(IF(DonnéesDuProspect[Clôture de \nla prévision] <>\"\",IF(DonnéesDuProspect[Clôture de \nla prévision] = \"Juin\",DonnéesDuProspect[Prévision \npondérée],0),\"\"),\"\")","v":""},{"$f":"IFERROR(IF(DonnéesDuProspect[Clôture de \nla prévision] <>\"\",IF(DonnéesDuProspect[Clôture de \nla prévision] = \"Juillet\",DonnéesDuProspect[Prévision \npondérée],0),\"\"),\"\")","v":""},{"$f":"IFERROR(IF(DonnéesDuProspect[Clôture de \nla prévision] <>\"\",IF(DonnéesDuProspect[Clôture de \nla prévision] = \"Août\",DonnéesDuProspect[Prévision \npondérée],0),\"\"),\"\")","v":""},{"$f":"IFERROR(IF(DonnéesDuProspect[Clôture de \nla prévision] <>\"\",IF(DonnéesDuProspect[Clôture de \nla prévision] = \"Septembre\",DonnéesDuProspect[Prévision \npondérée],0),\"\"),\"\")","v":""},{"$f":"IFERROR(IF(DonnéesDuProspect[Clôture de \nla prévision] <>\"\",IF(DonnéesDuProspect[Clôture de \nla prévision] = \"Octobre\",DonnéesDuProspect[Prévision \npondérée],0),\"\"),\"\")","v":""},{"$f":"IFERROR(IF(DonnéesDuProspect[Clôture de \nla prévision] <>\"\",IF(DonnéesDuProspect[Clôture de \nla prévision] = \"Novembre\",DonnéesDuProspect[Prévision \npondérée],0),\"\"),\"\")","v":""},{"$f":"IFERROR(IF(DonnéesDuProspect[Clôture de \nla prévision] <>\"\",IF(DonnéesDuProspect[Clôture de \nla prévision] = \"Décembre\",DonnéesDuProspect[Prévision \npondérée],0),\"\"),\"\")","v":""}]
[null,{"$f":"IFERROR(IF(AND(DonnéesDuProspect[Nom du prospect] <> \"\", ROW(VentesPrévues[Nom du prospect])<>DernièreEntrée),DonnéesDuProspect[Nom du prospect], \"\"),\"\")","v":""},{"$f":"IFERROR(IF(DonnéesDuProspect[Clôture de \nla prévision] <>\"\",IF(DonnéesDuProspect[Clôture de \nla prévision]= \"Janvier\",DonnéesDuProspect[Prévision \npondérée],0),\"\"),\"\")","v":""},{"$f":"IFERROR(IF(DonnéesDuProspect[Clôture de \nla prévision] <>\"\",IF(DonnéesDuProspect[Clôture de \nla prévision] = \"Février\",DonnéesDuProspect[Prévision \npondérée],0),\"\"),\"\")","v":""},{"$f":"IFERROR(IF(DonnéesDuProspect[Clôture de \nla prévision] <>\"\",IF(DonnéesDuProspect[Clôture de \nla prévision] = \"Mars\",DonnéesDuProspect[Prévision \npondérée],0),\"\"),\"\")","v":""},{"$f":"IFERROR(IF(DonnéesDuProspect[Clôture de \nla prévision] <>\"\",IF(DonnéesDuProspect[Clôture de \nla prévision] = \"Avril\",DonnéesDuProspect[Prévision \npondérée],0),\"\"),\"\")","v":""},{"$f":"IFERROR(IF(DonnéesDuProspect[Clôture de \nla prévision] <>\"\",IF(DonnéesDuProspect[Clôture de \nla prévision] = \"Mai\",DonnéesDuProspect[Prévision \npondérée],0),\"\"),\"\")","v":""},{"$f":"IFERROR(IF(DonnéesDuProspect[Clôture de \nla prévision] <>\"\",IF(DonnéesDuProspect[Clôture de \nla prévision] = \"Juin\",DonnéesDuProspect[Prévision \npondérée],0),\"\"),\"\")","v":""},{"$f":"IFERROR(IF(DonnéesDuProspect[Clôture de \nla prévision] <>\"\",IF(DonnéesDuProspect[Clôture de \nla prévision] = \"Juillet\",DonnéesDuProspect[Prévision \npondérée],0),\"\"),\"\")","v":""},{"$f":"IFERROR(IF(DonnéesDuProspect[Clôture de \nla prévision] <>\"\",IF(DonnéesDuProspect[Clôture de \nla prévision] = \"Août\",DonnéesDuProspect[Prévision \npondérée],0),\"\"),\"\")","v":""},{"$f":"IFERROR(IF(DonnéesDuProspect[Clôture de \nla prévision] <>\"\",IF(DonnéesDuProspect[Clôture de \nla prévision] = \"Septembre\",DonnéesDuProspect[Prévision \npondérée],0),\"\"),\"\")","v":""},{"$f":"IFERROR(IF(DonnéesDuProspect[Clôture de \nla prévision] <>\"\",IF(DonnéesDuProspect[Clôture de \nla prévision] = \"Octobre\",DonnéesDuProspect[Prévision \npondérée],0),\"\"),\"\")","v":""},{"$f":"IFERROR(IF(DonnéesDuProspect[Clôture de \nla prévision] <>\"\",IF(DonnéesDuProspect[Clôture de \nla prévision] = \"Novembre\",DonnéesDuProspect[Prévision \npondérée],0),\"\"),\"\")","v":""},{"$f":"IFERROR(IF(DonnéesDuProspect[Clôture de \nla prévision] <>\"\",IF(DonnéesDuProspect[Clôture de \nla prévision] = \"Décembre\",DonnéesDuProspect[Prévision \npondérée],0),\"\"),\"\")","v":""}]
[null,"Total",{"$f":"SUBTOTAL(109,VentesPrévues[Prévision \npour janvier])","v":{"v":270000,"d":"270,000 €"}},{"$f":"SUBTOTAL(109,VentesPrévues[Prévision \npour février])","v":{"v":20000,"d":"20,000 €"}},{"$f":"SUBTOTAL(109,VentesPrévues[Prévision \npour mars])","v":{"v":20000,"d":"20,000 €"}},{"$f":"SUBTOTAL(109,VentesPrévues[Prévision \npour avril])","v":{"v":0,"d":"0 €"}},{"$f":"SUBTOTAL(109,VentesPrévues[Prévision \npour mai])","v":{"v":0,"d":"0 €"}},{"$f":"SUBTOTAL(109,VentesPrévues[Prévision \npour juin])","v":{"v":0,"d":"0 €"}},{"$f":"SUBTOTAL(109,VentesPrévues[Prévision pour juillet])","v":{"v":0,"d":"0 €"}},{"$f":"SUBTOTAL(109,VentesPrévues[Prévision \npour août])","v":{"v":0,"d":"0 €"}},{"$f":"SUBTOTAL(109,VentesPrévues[Prévision \npour septembre])","v":{"v":0,"d":"0 €"}},{"$f":"SUBTOTAL(109,VentesPrévues[Prévision \npour octobre])","v":{"v":0,"d":"0 €"}},{"$f":"SUBTOTAL(109,VentesPrévues[Prévision \npour novembre])","v":{"v":0,"d":"0 €"}},{"$f":"SUBTOTAL(109,VentesPrévues[Prévision \npour décembre])","v":{"v":0,"d":"0 €"}}]
[null,"Total cumulé",{"$f":"C20","v":{"v":270000,"d":"270,000 €"}},{"$f":"C21+D20","v":{"v":290000,"d":"290,000 €"}},{"$f":"D21+E20","v":{"v":310000,"d":"310,000 €"}},{"$f":"E21+F20","v":{"v":310000,"d":"310,000 €"}},{"$f":"F21+G20","v":{"v":310000,"d":"310,000 €"}},{"$f":"G21+H20","v":{"v":310000,"d":"310,000 €"}},{"$f":"H21+I20","v":{"v":310000,"d":"310,000 €"}},{"$f":"I21+J20","v":{"v":310000,"d":"310,000 €"}},{"$f":"J21+K20","v":{"v":310000,"d":"310,000 €"}},{"$f":"K21+L20","v":{"v":310000,"d":"310,000 €"}},{"$f":"L21+M20","v":{"v":310000,"d":"310,000 €"}},{"$f":"M21+N20","v":{"v":310000,"d":"310,000 €"}}]

{"sheet":"Prévision pondérée mensuelle","index":2,"n_rows":3,"n_cols":2,"rows_kept":3}
[null,{"$f":"Nom_société","v":"Nom société"}]
[null,"Prévision pondérée mensuelle"]
[null," "]